bitfinex/quotes_ETHUSD_20230103
["timestamp","ask_amount","ask_price","bid_price","bid_amount"]
[1672758482929,0.00394159,1212.4,1212.3,62.48372925]
[1672758484084,0.00394159,1212.4,1212.3,64.10772925]
[1672758484237,1.59e-06,1212.4,1212.3,64.10772925]
[1672758484729,1.59e-06,1212.4,1212.3,64.60153128]
[1672758485065,0.00083189,1212.5,1212.3,64.83153128]
[1672758485195,0.00083189,1212.5,1212.4,14.51686114]
[1672758485406,0.00083189,1212.5,1212.4,18.73288527]
[1672758485616,0.00083189,1212.5,1212.4,19.2266873]
[1672758485844,0.00083189,1212.5,1212.4,48.9198473]
[1672758487509,0.00083189,1212.5,1212.4,49.5390473]
[1672758487727,0.00083189,1212.5,1212.4,59.8830473]
[1672758487939,9.97e-06,1212.6,1212.5,5.5]
[1672758488186,0.00030805,1212.7,1212.5,33.66246587]
[1672758488389,0.00030805,1212.7,1212.6,4.14886114]
[1672758488568,0.00030805,1212.7,1212.6,4.99796114]
[1672758488785,0.00030805,1212.7,1212.6,20.09656317]
[1672758489035,0.00030805,1212.7,1212.6,49.87583317]
[1672758489355,0.00030805,1212.7,1212.6,56.70275696]
[1672758489676,0.00030805,1212.7,1212.6,44.68086493]
[1672758490205,0.00030805,1212.7,1212.6,53.95785493]
[1672758492387,0.00030805,1212.7,1212.6,44.06176493]
[1672758493302,0.00030805,1212.7,1212.6,53.95785493]
[1672758494609,0.00030805,1212.7,1212.6,63.85394493]
[1672758494821,0.00020942,1212.8,1212.7,15.39490195]
[1672758495140,0.00020942,1212.8,1212.7,59.51221683]
[1672758505567,0.00020942,1212.8,1212.7,60.00601886]
[1672758505736,0.00020942,1212.8,1212.7,60.62511886]
[1672758505939,0.00020942,1212.8,1212.7,60.00601886]
[1672758510659,0.00020942,1212.8,1212.7,59.51221683]
[1672758511494,0.00020942,1212.8,1212.7,57.88821683]
[1672758517650,0.00020942,1212.8,1212.7,57.88612434]
[1672758518866,0.00020942,1212.8,1212.7,59.51812434]
[1672758519077,0.00020942,1212.8,1212.7,60.01192637]
[1672758520330,0.00020942,1212.8,1212.7,68.64492637]
[1672758520584,0.00020942,1212.8,1212.7,68.87492637]
[1672758523295,0.00220942,1212.8,1212.7,71.87292637]
[1672758523640,0.00442006,1212.9,1212.8,5.5]
[1672758523641,6e-08,1212.9,1212.8,5.5]
[1672758523857,6e-08,1212.9,1212.8,63.54215378]
[1672758524048,6e-08,1212.9,1212.8,74.07035581]
[1672758525261,6e-08,1212.9,1212.8,73.84035581]
[1672758525739,6e-08,1212.9,1212.8,73.34655378]
[1672758526208,6e-08,1212.9,1212.8,70.34655378]
[1672758526373,6e-08,1212.9,1212.8,63.21855378]
[1672758529210,6e-08,1212.9,1212.8,64.83655378]
[1672758532084,6e-08,1212.9,1212.8,64.83455378]
[1672758532085,0.00200006,1212.9,1212.8,64.83455378]
[1672758532396,6e-08,1212.9,1212.8,64.83655378]
[1672758532612,6e-08,1212.9,1212.8,65.06655378]
[1672758534033,6e-08,1212.9,1212.8,65.56035581]
[1672758534246,6e-08,1212.9,1212.8,68.56035581]
[1672758534452,0.0046452,1213.0,1212.8,78.82535581]
[1672758534453,5.26e-06,1213.0,1212.8,78.82535581]
[1672758534663,5.26e-06,1213.0,1212.9,16.26586114]
[1672758534997,5.26e-06,1213.0,1212.9,54.00591672]
[1672758536771,5.26e-06,1213.0,1212.9,63.89955672]
[1672758537390,5.26e-06,1213.0,1212.9,55.26655672]
[1672758538229,5.26e-06,1213.0,1212.9,55.268988]
[1672758538705,5.26e-06,1213.0,1212.9,53.40455672]
[1672758538863,5.26e-06,1213.0,1212.9,45.43642114]
[1672758541174,5.26e-06,1213.0,1212.9,43.81442114]
[1672758541345,4.32454335,1213.0,1212.9,33.92078114]
[1672758541499,4.94344335,1213.0,1212.9,33.92078114]
[1672758542295,0.61890526,1213.0,1212.9,40.09946396]
[1672758542745,5.26e-06,1213.0,1212.9,40.09946396]
[1672758544713,0.00200526,1213.0,1212.9,40.09746396]
[1672758545020,5.26e-06,1213.0,1212.9,40.09946396]
[1672758545335,5.26e-06,1213.0,1212.9,35.54278114]
[1672758545705,4.32454335,1213.0,1212.9,35.54278114]
[1672758546499,4.32454335,1213.0,1212.9,33.92078114]
[1672758548538,4.32197127,1213.0,1212.9,33.92078114]
[1672758549236,4.32197127,1213.0,1212.9,43.81442114]
[1672758553400,0.68951262,1213.1,1212.9,48.35806067]
[1672758553611,0.62351262,1213.1,1213.0,4.14886114]
[1672758553857,5.00461262,1213.1,1213.0,33.82732114]
[1672758554023,5.01461262,1213.1,1213.0,33.91832114]
[1672758554547,9.33971667,1213.1,1213.0,43.81114114]
[1672758555234,5.01461262,1213.1,1213.0,43.81114114]
[1672758555420,9.33988806,1213.1,1213.0,43.81114114]
[1672758555845,13.665158,1213.1,1213.0,43.81114114]
[1672758559087,15.0688828,1213.1,1213.0,33.91832114]
[1672758559298,14.4499828,1213.1,1213.0,33.91832114]
[1672758560512,9.33988806,1213.1,1213.0,33.91832114]
[1672758560805,13.66568354,1213.1,1213.0,33.91832114]
[1672758561634,9.33988806,1213.1,1213.0,33.91832114]
[1672758561847,14.4499828,1213.1,1213.0,33.91832114]
[1672758562012,14.4499828,1213.1,1213.0,29.76946]
[1672758563437,14.4499828,1213.1,1213.0,9.98382]
[1672758563590,15.0688828,1213.1,1213.0,9.98382]
[1672758567172,15.0688828,1213.1,1213.0,19.87664]
[1672758568906,14.4499828,1213.1,1213.0,19.87664]
[1672758569488,9.33988806,1213.1,1213.0,29.76946]
[1672758569700,13.66535851,1213.1,1213.0,29.76946]
[1672758570225,13.66535851,1213.1,1213.0,33.91832114]
[1672758570683,14.4499828,1213.1,1213.0,33.91832114]
[1672758570856,9.33988806,1213.1,1213.0,33.91832114]
[1672758571218,13.66516031,1213.1,1213.0,33.91832114]
[1672758571896,9.33988806,1213.1,1213.0,33.91832114]
[1672758572107,13.66538513,1213.1,1213.0,33.91832114]
[1672758572354,9.33988806,1213.1,1213.0,33.91832114]
[1672758572563,9.33988806,1213.1,1213.0,33.91587726]
[1672758572985,14.4499828,1213.1,1213.0,24.02305726]
[1672758573364,41.26681806,1213.1,1213.0,0.052]
[1672758573640,52.78531806,1213.1,1213.0,0.012]
[1672758573805,5.5,1213.0,1212.7,0.01434961]
[1672758574005,5.11085894,1212.8,1212.7,0.01434961]
[1672758574216,5.17685894,1212.8,1212.7,0.01434961]
[1672758575581,6.877,1212.8,1212.7,0.01434961]
[1672758575812,11.20034417,1212.8,1212.7,0.01434961]
[1672758576114,6.877,1212.8,1212.7,0.01434961]
[1672758576361,11.20106529,1212.8,1212.7,0.01434961]
[1672758576976,9.39006529,1212.8,1212.7,0.01434961]
[1672758577738,9.39006529,1212.8,1212.7,9.90961961]
[1672758577973,9.39006529,1212.8,1212.7,0.08034961]
[1672758578263,9.39006529,1212.8,1212.7,5.51434961]
[1672758578466,9.39006529,1212.8,1212.7,0.08034961]
[1672758578687,9.39006529,1212.8,1212.7,0.01434961]
[1672758578870,9.39006529,1212.8,1212.7,1.65534961]
[1672758579041,9.39006529,1212.8,1212.7,0.01434961]
[1672758580319,14.96045,1212.8,1212.7,0.01434961]
[1672758580880,5.066,1212.8,1212.7,0.01434961]
[1672758581097,9.38842139,1212.8,1212.7,0.01434961]
[1672758581304,14.96045,1212.8,1212.7,0.01434961]
[1672758581519,19.2814832,1212.8,1212.7,0.01434961]
[1672758581728,19.28151341,1212.8,1212.7,0.01434961]
[1672758582043,14.96045,1212.8,1212.7,0.01434961]
[1672758582208,19.2815153,1212.8,1212.7,0.01434961]
[1672758582873,24.8549,1212.8,1212.7,0.01434961]
[1672758583257,9.38706465,1212.8,1212.7,0.01434961]
[1672758584834,10.90758549,1212.8,1212.7,0.01434961]
[1672758585079,20.80203549,1212.8,1212.7,0.01434961]
[1672758585433,30.69648549,1212.8,1212.7,0.01434961]
[1672758585726,10.90758549,1212.8,1212.7,0.01434961]
[1672758586538,10.90758549,1212.8,1212.7,9.90961961]
[1672758586756,10.90758549,1212.8,1212.7,19.87088961]
[1672758587313,10.90758549,1212.8,1212.7,9.97561961]
[1672758587634,6.58652084,1212.8,1212.7,0.08034961]
[1672758587941,10.90758549,1212.8,1212.7,0.01434961]
[1672758588560,10.90758549,1212.8,1212.7,9.90961961]
[1672758588753,10.90758549,1212.8,1212.7,9.97561961]
[1672758589670,10.28804404,1212.8,1212.7,35.53402075]
[1672758589878,10.90758549,1212.8,1212.7,5.84821075]
[1672758590871,40.59093549,1212.8,1212.7,5.84821075]
[1672758591079,10.90758549,1212.8,1212.7,5.84821075]
[1672758591299,20.80203549,1212.8,1212.7,5.84821075]
[1672758591613,10.90758549,1212.8,1212.7,5.84821075]
[1672758592672,6.58652084,1212.8,1212.7,25.63875075]
[1672758592877,10.28761301,1212.8,1212.7,27.63180342]
[1672758593771,10.28761301,1212.8,1212.7,35.90807342]
[1672758594243,10.28761301,1212.8,1212.7,33.91502075]
[1672758595220,10.28804947,1212.8,1212.7,33.91502075]
[1672758595506,10.28831277,1212.8,1212.7,24.01975075]
[1672758595680,6.58652084,1212.8,1212.7,14.12448075]
[1672758596080,10.90758549,1212.8,1212.7,33.91502075]
[1672758596292,6.58652084,1212.8,1212.7,33.91502075]
[1672758596541,10.90758549,1212.8,1212.7,33.91502075]
[1672758596757,6.58652084,1212.8,1212.7,33.91502075]
[1672758596968,10.28829456,1212.8,1212.7,33.91287762]
[1672758597512,6.58652084,1212.8,1212.7,33.91287762]
[1672758598115,10.90758549,1212.8,1212.7,33.91287762]
[1672758599546,10.90513266,1212.8,1212.7,33.91287762]
[1672758599963,10.90513266,1212.8,1212.7,43.80814762]
[1672758600647,10.90513266,1212.8,1212.7,14.12233762]
[1672758600970,10.90513266,1212.8,1212.7,33.91287762]
[1672758601734,10.90513266,1212.8,1212.7,43.80814762]
[1672758602104,1.58406801,1212.8,1212.7,43.80814762]
[1672758602349,1.52052084,1212.8,1212.7,43.80814762]
[1672758602578,5.84158549,1212.8,1212.7,33.91287762]
[1672758602750,5.90513266,1212.8,1212.7,33.91287762]
[1672758603145,10.90513266,1212.8,1212.7,33.91287762]
[1672758603855,10.90513266,1212.8,1212.7,33.91087762]
[1672758604027,10.90513266,1212.8,1212.7,33.91287762]
[1672758606221,10.90513266,1212.8,1212.7,29.76401648]
[1672758606438,10.90513266,1212.8,1212.7,9.97347648]
[1672758606676,10.90513266,1212.8,1212.7,19.86874648]
[1672758607297,30.69560493,1212.8,1212.7,0.07820648]
[1672758607587,21.58937695,1212.8,1212.7,0.01220648]
[1672758607766,11.69492695,1212.8,1212.7,0.01220648]
[1672758609213,6.58406801,1212.8,1212.7,0.01220648]
[1672758609393,11.69492695,1212.8,1212.7,0.01220648]
[1672758610235,11.69492695,1212.8,1212.7,9.90747648]
[1672758610478,11.69492695,1212.8,1212.7,9.97347648]
[1672758611015,11.69492695,1212.8,1212.7,0.07820648]
[1672758611326,11.69492695,1212.8,1212.7,9.90747648]
[1672758611568,11.69492695,1212.8,1212.7,9.97347648]
[1672758612075,42.15485988,1212.8,1212.7,6.48e-06]
[1672758612226,42.15485988,1212.8,1212.6,0.01434917]
[1672758612227,53.01927915,1212.8,1212.6,0.01434917]
[1672758612434,42.68377114,1212.7,1212.5,0.01476061]
[1672758612644,15.78315459,1212.6,1212.5,0.01476061]
[1672758612846,46.38407176,1212.6,1212.5,0.01476061]
[1672758613123,46.74853753,1212.6,1212.4,0.0156384]
[1672758613340,7.9812,1212.5,1212.4,0.0156384]
[1672758613470,35.83854717,1212.5,1212.4,0.0156384]
[1672758614319,5.5,1212.4,1212.0,0.0816384]
[1672758614560,4.32215464,1212.1,1212.0,0.0156384]
[1672758615609,5.0,1212.1,1212.0,0.0156384]
[1672758615804,9.38570181,1212.1,1212.0,0.0156384]
[1672758616364,8.76750029,1212.1,1212.0,0.0156384]
[1672758616519,8.76750029,1212.1,1212.0,9.9166284]
[1672758616732,8.76750029,1212.1,1212.0,9.9826284]
[1672758617203,5.06354717,1212.1,1212.0,9.9826284]
[1672758617350,5.06354717,1212.1,1212.0,11.97100424]
[1672758617566,5.06354717,1212.1,1212.0,31.77298424]
[1672758618144,8.14562267,1212.1,1212.0,35.92184538]
[1672758618355,5.06354717,1212.1,1212.0,35.92184538]
[1672758618933,5.06354717,1212.1,1212.0,37.97284538]
[1672758619377,5.06354717,1212.1,1212.0,40.00384538]
[1672758620046,7.17e-06,1212.1,1212.0,40.00384538]
[1672758620393,0.06,1212.1,1212.0,40.49764741]
[1672758620587,3.0820755,1212.3,1212.0,40.49764741]
[1672758620880,3.0820755,1212.3,1212.2,47.1364]
[1672758621191,3.0820755,1212.3,1212.2,56.47978725]
[1672758621385,3.14608267,1212.4,1212.2,56.47978725]
[1672758621594,3.0820755,1212.4,1212.3,6.19686114]
[1672758621805,3.14608267,1212.5,1212.3,12.11683987]
[1672758622027,3.0820755,1212.5,1212.4,6.19786114]
[1672758622193,3.0820755,1212.5,1212.4,6.26386114]
[1672758622395,3.0820755,1212.5,1212.4,8.30686114]
[1672758622649,3.0820755,1212.5,1212.4,15.62740025]
[1672758622980,3.0820755,1212.5,1212.4,45.33676307]
[1672758625258,3.14608267,1212.6,1212.4,45.33676307]
[1672758625469,3.0820755,1212.6,1212.5,11.69986114]
[1672758625680,8.0820755,1212.6,1212.5,16.84973745]
[1672758625899,8.14608267,1212.6,1212.5,16.84973745]
[1672758626240,8.14608267,1212.6,1212.5,0.066]
[1672758626448,19.90135181,1212.6,1212.2,32.15431]
[1672758626674,3.07988208,1212.4,1212.3,9.64886114]
[1672758626847,3.07988208,1212.4,1212.3,9.71486114]
[1672758627037,3.07988208,1212.4,1212.3,2.26656611]
[1672758627232,3.07988208,1212.4,1212.3,2.20056611]
[1672758627451,3.07988208,1212.4,1212.3,21.99660611]
[1672758627659,3.07988208,1212.4,1212.3,12.16436611]
[1672758627660,8.07988208,1212.4,1212.3,12.16436611]
[1672758627876,8.14388925,1212.4,1212.3,0.066]
[1672758628093,8.14388925,1212.4,1212.2,22.25605]
[1672758628284,8.14388925,1212.4,1212.2,26.40491114]
[1672758628513,8.14388925,1212.4,1212.2,35.96301114]
[1672758628720,3.07988208,1212.3,1212.2,41.09931125]
[1672758628972,8.07988208,1212.3,1212.2,41.09931125]
[1672758629129,8.14388925,1212.3,1212.2,41.09931125]
[1672758629344,5.06400717,1212.3,1212.2,41.09931125]
[1672758632551,5.06400717,1212.3,1212.2,43.13031125]
[1672758632909,5.06400717,1212.3,1212.2,33.23186125]
[1672758633379,5.06400717,1212.3,1212.2,43.13121125]
[1672758633763,5.06400717,1212.3,1212.2,41.10021125]
[1672758633964,5.06400717,1212.3,1212.2,50.99956125]
[1672758636402,5.06400717,1212.3,1212.2,53.05056125]
[1672758636811,0.06400717,1212.3,1212.2,53.05056125]
[1672758637015,3.07988208,1212.5,1212.3,5.5]
[1672758637275,5.0,1212.4,1212.3,39.41029114]
[1672758637428,5.06400717,1212.4,1212.3,49.30882114]
[1672758637643,8.14388925,1212.4,1212.3,50.94082114]
[1672758637857,8.14388925,1212.4,1212.3,56.71173327]
[1672758639154,5.06400717,1212.4,1212.3,56.71173327]
[1672758640966,6.54856059,1212.4,1212.3,56.71173327]
[1672758641128,1.54856059,1212.4,1212.3,56.71173327]
[1672758641337,1.48455342,1212.4,1212.3,56.71173327]
[1672758644301,1.48455342,1212.4,1212.3,56.70798015]
[1672758646812,4.5644355,1212.4,1212.3,46.80945015]
[1672758646982,4.5644355,1212.4,1212.3,41.03853802]
[1672758647301,9.5644355,1212.4,1212.3,41.03853802]
[1672758647511,9.62844267,1212.4,1212.3,41.03853802]
[1672758647872,9.62844267,1212.4,1212.3,50.93706802]
[1672758648561,4.62844267,1212.4,1212.3,50.93706802]
[1672758648782,4.5644355,1212.4,1212.3,56.19397482]
[1672758649133,4.5644355,1212.4,1212.3,35.54229114]
[1672758649497,4.56924764,1212.4,1212.3,25.64376114]
[1672758649702,5.18041192,1212.4,1212.3,25.64376114]
[1672758650039,10.24441909,1212.4,1212.3,25.64376114]
[1672758650343,10.24441909,1212.4,1212.3,24.01176114]
[1672758650575,10.24441909,1212.4,1212.3,33.91029114]
[1672758650928,6.54856059,1212.4,1212.3,33.91029114]
[1672758651715,9.63377622,1212.4,1212.3,33.91029114]
[1672758652082,9.63377622,1212.4,1212.3,43.80882114]
[1672758653497,9.63377622,1212.4,1212.3,46.41322505]
[1672758653707,9.63377622,1212.4,1212.3,36.51469505]
[1672758654028,9.63377622,1212.4,1212.3,33.91029114]
[1672758655187,9.63377622,1212.4,1212.3,45.44082114]
[1672758655188,6.54856059,1212.4,1212.3,45.44082114]
[1672758656182,9.63377622,1212.4,1212.3,35.54229114]
[1672758656395,9.63814058,1212.4,1212.3,35.54229114]
[1672758656660,4.63814058,1212.4,1212.3,39.25972025]
[1672758656819,4.57413341,1212.4,1212.3,39.25972025]
[1672758657436,4.57413341,1212.4,1212.3,49.15825025]
[1672758657896,4.57413341,1212.4,1212.3,39.25972025]
[1672758658862,4.57413341,1212.4,1212.3,49.15825025]
[1672758659814,4.32756055,1212.6,1212.4,5.5]
[1672758659815,3.70126441,1212.6,1212.4,5.5]
[1672758660003,3.70126441,1212.6,1212.4,13.90200523]
[1672758660004,5.0,1212.5,1212.4,13.90200523]
[1672758660218,0.066,1212.5,1212.4,8.821]
[1672758660423,0.00540591,1212.6,1212.4,8.821]
[1672758660603,0.00540591,1212.6,1212.4,17.0822]
[1672758660810,0.00540591,1212.6,1212.4,50.81977011]
[1672758661024,5.00540591,1212.6,1212.4,50.81977011]
[1672758661248,5.07140591,1212.6,1212.5,4.14886114]
[1672758661563,0.07140591,1212.6,1212.5,5.78086114]
[1672758661952,0.00540591,1212.6,1212.5,5.84686114]
[1672758662106,0.00540591,1212.6,1212.5,39.21808027]
[1672758662699,3.70126441,1212.6,1212.5,39.21808027]
[1672758662911,3.70126441,1212.6,1212.5,19.42428027]
[1672758663140,3.70126441,1212.6,1212.5,9.52738027]
[1672758663933,3.70126441,1212.6,1212.5,4.21486114]
[1672758664070,3.70126441,1212.6,1212.5,4.14886114]
[1672758664459,3.70126441,1212.6,1212.5,33.83956114]
[1672758664752,3.70126441,1212.6,1212.5,33.90556114]
[1672758664753,8.70126441,1212.6,1212.5,33.90556114]
[1672758664906,8.77923362,1212.6,1212.5,33.90556114]
[1672758665116,5.07140591,1212.6,1212.5,33.90556114]
[1672758665355,9.3907807,1212.6,1212.5,33.90556114]
[1672758665719,5.06862606,1212.6,1212.5,33.90556114]
[1672758665859,8.77631394,1212.6,1212.5,33.90556114]
[1672758666071,5.06862606,1212.6,1212.5,33.90556114]
[1672758666966,5.06862606,1212.6,1212.5,43.80246114]
[1672758667592,9.3907807,1212.6,1212.5,29.7567]
[1672758667913,5.06862606,1212.6,1212.5,29.7567]
[1672758668092,9.3907807,1212.6,1212.5,29.7567]
[1672758668308,5.06862606,1212.6,1212.5,33.90556114]
[1672758668686,9.3907807,1212.6,1212.5,33.90556114]
[1672758670210,9.3907807,1212.6,1212.5,0.066]
[1672758670380,29.96635123,1212.6,1212.3,30.95819]
[1672758670593,9.32765161,1212.5,1212.4,4.14886114]
[1672758670935,9.39365161,1212.5,1212.4,4.14886114]
[1672758671278,9.39365161,1212.5,1212.3,30.95819]
[1672758671279,9.39365161,1212.5,1212.3,31.3901]
[1672758671428,3.70948936,1212.4,1212.3,24.01085114]
[1672758671642,8.70948936,1212.4,1212.3,14.11274114]
[1672758671963,8.77560215,1212.4,1212.3,14.11274114]
[1672758672326,5.066,1212.4,1212.3,0.066]
[1672758672538,9.39365161,1212.4,1212.2,9.98042213]
[1672758672681,3.7097936,1212.3,1212.2,14.12928327]
[1672758673058,3.7097936,1212.3,1212.2,16.6545616]
[1672758673289,3.7097936,1212.3,1212.2,26.5536016]
[1672758674103,8.7097936,1212.3,1212.2,26.5536016]
[1672758674317,8.7757936,1212.3,1212.2,36.4526616]
[1672758676949,5.066,1212.3,1212.2,46.3520116]
[1672758677961,8.7757936,1212.3,1212.2,46.3520116]
[1672758680533,8.7757936,1212.3,1212.2,43.82673327]
[1672758683106,8.7757936,1212.3,1212.2,29.77852213]
[1672758683391,5.066,1212.3,1212.2,29.77852213]
[1672758683583,8.77392552,1212.3,1212.2,29.77852213]
[1672758685584,8.77243078,1212.3,1212.2,19.87946213]
[1672758685799,5.066,1212.3,1212.2,19.82946213]
[1672758685983,5.066,1212.3,1212.2,0.066]
[1672758686149,19.29218161,1212.3,1212.1,11.58778]
[1672758686360,3.70661503,1212.2,1212.1,14.11464114]
[1672758686611,8.70661503,1212.2,1212.1,14.11464114]
[1672758686807,8.77261503,1212.2,1212.1,14.11464114]
[1672758687022,8.77261503,1212.2,1212.1,33.91498114]
[1672758687235,8.77261503,1212.2,1212.1,24.01481114]
[1672758689095,8.77261503,1212.2,1212.1,33.91498114]
[1672758689625,5.066,1212.2,1212.1,33.91498114]
[1672758689836,8.77261503,1212.2,1212.1,33.91498114]
[1672758690099,5.066,1212.2,1212.1,33.91498114]
[1672758690903,5.066,1212.2,1212.1,39.47508009]
[1672758691338,5.066,1212.2,1212.1,33.91498114]
[1672758691889,8.77261503,1212.2,1212.1,24.01481114]
[1672758692062,8.77261503,1212.2,1212.1,19.86595]
[1672758692252,8.77261503,1212.2,1212.1,9.96617]
[1672758692673,8.77261503,1212.2,1212.1,29.76651]
[1672758693146,8.77261503,1212.2,1212.1,33.91537114]
[1672758693469,5.066,1212.2,1212.1,48.38564209]
[1672758694675,5.066,1212.2,1212.1,50.00764209]
[1672758696037,5.066,1212.2,1212.1,52.12844412]
[1672758696247,0.054,1212.3,1212.2,5.5]
[1672758696563,25.82031503,1212.5,1212.2,58.39104555]
[1672758696769,4.33781503,1212.5,1212.3,5.77886114]
[1672758697029,4.32581503,1212.5,1212.4,29.69316]
[1672758697257,4.32581503,1212.5,1212.4,29.75916]
[1672758697645,4.32193024,1212.5,1212.4,29.75916]
[1672758697856,4.39627767,1212.6,1212.4,29.75916]
[1672758697857,5.01537767,1212.6,1212.4,29.75916]
[1672758698049,4.32765161,1212.5,1212.4,29.75916]
[1672758698259,9.32765161,1212.5,1212.4,29.75916]
[1672758698485,5.012,1212.5,1212.4,29.75916]
[1672758698700,9.33965161,1212.5,1212.4,29.75916]
[1672758698870,5.012,1212.5,1212.4,29.75916]
[1672758700251,8.71543807,1212.5,1212.4,29.75916]
[1672758700459,9.33965161,1212.5,1212.4,29.75916]
[1672758700675,5.012,1212.5,1212.4,29.75916]
[1672758701024,9.33965161,1212.5,1212.4,29.75916]
[1672758701255,8.71725438,1212.5,1212.4,29.75916]
[1672758701463,8.71725438,1212.5,1212.4,38.45166425]
[1672758701761,8.71725438,1212.5,1212.4,49.98138425]
[1672758704966,8.71725438,1212.5,1212.4,35.54002114]
[1672758705434,9.33965161,1212.5,1212.4,9.96372]
[1672758707012,9.33965161,1212.5,1212.4,19.81144]
[1672758708533,9.33965161,1212.5,1212.4,9.91372]
[1672758709011,9.33965161,1212.5,1212.4,15.41372]
[1672758709012,5.012,1212.5,1212.4,15.41372]
[1672758709325,5.012,1212.5,1212.4,29.70916]
[1672758709541,9.33965161,1212.5,1212.4,29.70916]
[1672758709900,8.71941039,1212.5,1212.4,29.70916]
[1672758710112,9.33965161,1212.5,1212.4,29.70916]
[1672758710545,9.33965161,1212.5,1212.4,29.70716]
[1672758710546,9.34165161,1212.5,1212.4,29.70716]
[1672758710901,9.33965161,1212.5,1212.4,9.91372]
[1672758711323,9.33965161,1212.5,1212.4,19.81144]
[1672758711686,5.012,1212.5,1212.4,19.81144]
[1672758712526,5.012,1212.5,1212.4,29.70916]
[1672758712740,9.33965161,1212.5,1212.4,29.70916]
[1672758713014,5.012,1212.5,1212.4,29.70916]
[1672758713373,8.71939871,1212.5,1212.4,29.70916]
[1672758714046,8.71912825,1212.5,1212.4,29.70916]
[1672758714597,8.71911978,1212.5,1212.4,29.70916]
[1672758714966,9.33965161,1212.5,1212.4,0.066]
[1672758715140,9.33965161,1212.5,1212.3,19.86181]
[1672758715459,3.70739452,1212.4,1212.3,24.01067114]
[1672758716128,8.70739452,1212.4,1212.3,33.90920114]
[1672758716259,8.71939452,1212.4,1212.3,33.90920114]
[1672758717438,8.71939452,1212.4,1212.3,39.48466525]
[1672758718479,8.71939452,1212.4,1212.3,49.38319525]
[1672758721426,8.71939452,1212.4,1212.3,39.48466525]
[1672758721615,8.71939452,1212.4,1212.3,33.90920114]
[1672758723336,9.33965161,1212.4,1212.3,14.11267114]
[1672758723505,5.012,1212.4,1212.3,14.11267114]
[1672758723715,9.33965161,1212.4,1212.3,14.11267114]
[1672758724622,9.33965161,1212.4,1212.3,24.01120114]
[1672758724766,9.33965161,1212.4,1212.3,0.066]
[1672758724972,29.13509161,1212.4,1212.2,10.3807]
[1672758725305,3.70759749,1212.3,1212.2,14.52956114]
[1672758725496,3.70759749,1212.3,1212.2,10.3807]
[1672758725708,3.70759749,1212.3,1212.2,40.07845]
[1672758725922,3.70759749,1212.3,1212.2,30.1791]
[1672758726127,3.70759749,1212.3,1212.2,19.8644]
[1672758726551,8.70759749,1212.3,1212.2,19.8644]
[1672758726822,8.71959749,1212.3,1212.2,29.76375]
[1672758727607,8.71959749,1212.3,1212.2,36.57339889]
[1672758727818,8.71959749,1212.3,1212.2,46.47274889]
[1672758728504,5.012,1212.3,1212.2,46.47274889]
[1672758729444,8.71959749,1212.3,1212.2,46.47274889]
[1672758729632,3.71959749,1212.3,1212.2,46.47274889]
[1672758729808,3.70759749,1212.3,1212.2,36.57339889]
[1672758730475,3.70759749,1212.3,1212.2,38.20539889]
[1672758731023,3.70759749,1212.3,1212.2,38.20435579]
[1672758732260,4.39365161,1212.4,1212.2,29.7627069]
[1672758732472,3.71009929,1212.3,1212.2,29.7627069]
[1672758732701,8.71009929,1212.3,1212.2,29.7627069]
[1672758732913,8.72409929,1212.3,1212.2,29.7627069]
[1672758734431,8.72409929,1212.3,1212.2,39.6620569]
[1672758735918,5.014,1212.3,1212.2,29.7627069]
[1672758736135,9.96095161,1212.3,1212.2,9.9640069]
[1672758736360,9.96095161,1212.3,1212.2,9.9643069]
[1672758737188,10.73884517,1212.3,1212.2,0.0649569]
[1672758737372,10.73884517,1212.3,1212.1,29.72577886]
[1672758737581,9.96367178,1212.3,1212.1,29.72577886]
[1672758738043,19.86244178,1212.3,1212.1,0.08104886]
[1672758738257,4.33037178,1212.2,1212.1,0.01609196]
[1672758738461,9.33037178,1212.2,1212.1,0.01609196]
[1672758738639,5.014,1212.2,1212.1,9.91626196]
[1672758738855,5.014,1212.2,1212.1,9.98121886]
[1672758739589,8.7230465,1212.2,1212.1,19.88138886]
[1672758740793,8.7230465,1212.2,1212.1,39.68172886]
[1672758741580,8.7230465,1212.2,1212.1,29.78155886]
[1672758741843,5.014,1212.2,1212.1,0.08104886]
[1672758742055,30.76754517,1212.2,1212.1,0.01609196]
[1672758742225,13.96884517,1212.2,1212.1,0.01609196]
[1672758742899,13.73884517,1212.2,1212.1,0.01609196]
[1672758743535,8.6333,1212.2,1212.1,0.01609196]
[1672758743685,18.73884517,1212.2,1212.1,0.01609196]
[1672758744057,8.6333,1212.2,1212.1,0.01609196]
[1672758744221,13.73884517,1212.2,1212.1,0.01609196]
[1672758744432,8.6333,1212.2,1212.1,0.01609196]
[1672758744683,12.95805955,1212.2,1212.1,0.01609196]
[1672758745311,9.95805955,1212.2,1212.1,0.01609196]
[1672758745678,9.95805955,1212.2,1212.1,19.81643196]
[1672758745927,9.95805955,1212.2,1212.1,19.83138886]
[1672758746097,9.93609104,1212.2,1212.1,19.83138886]
[1672758746312,9.93609104,1212.2,1212.1,9.93121886]
[1672758746532,9.93609104,1212.2,1212.1,0.0649569]
[1672758746782,9.93609104,1212.2,1212.0,29.7821053]
[1672758746953,8.70597642,1212.1,1212.0,19.8815153]
[1672758747163,8.71997642,1212.1,1212.0,19.8815153]
[1672758749368,8.71997642,1212.1,1212.0,9.9809353]
[1672758749827,8.71997642,1212.1,1212.0,0.0805953]
[1672758749996,8.71997642,1212.1,1212.0,0.0156384]
[1672758749997,5.014,1212.1,1212.0,0.0156384]
[1672758750229,29.13909955,1212.1,1212.0,0.0156384]
[1672758750582,29.13909955,1212.1,1212.0,9.9166284]
[1672758750583,9.33875955,1212.1,1212.0,9.9166284]
[1672758750776,9.33875955,1212.1,1212.0,0.0805953]
[1672758751121,9.33875955,1212.1,1212.0,0.0156384]
[1672758751947,5.014,1212.1,1212.0,0.0156384]
[1672758752310,9.33875955,1212.1,1212.0,0.0156384]
[1672758753509,8.71779492,1212.1,1212.0,0.0156384]
[1672758753698,8.71779492,1212.1,1212.0,9.9166284]
[1672758753911,5.014,1212.1,1212.0,0.0805953]
[1672758754123,5.014,1212.1,1212.0,0.0156384]
[1672758754908,9.33875955,1212.1,1212.0,0.0156384]
[1672758755100,9.33875955,1212.1,1211.8,20.95959266]
[1672758755311,9.33875955,1212.1,1211.8,1.68308266]
[1672758755312,3.70409622,1212.0,1211.8,1.68308266]
[1672758755522,3.70409622,1212.0,1211.7,9.92242913]
[1672758755523,3.70409622,1211.9,1211.7,21.04628603]
[1672758755738,3.77009622,1212.0,1211.7,21.04628603]
[1672758755950,3.70409622,1212.0,1211.8,29.7078]
[1672758756116,5.0,1211.9,1211.8,29.7727569]
[1672758756322,8.71809622,1211.9,1211.8,9.9675169]
[1672758757860,8.71809622,1211.9,1211.8,9.9175169]